[Event "ESNH-ch 2021"]
[Site "Tornelo"]
[Date "2021.04.17"]
[Round "4.5"]
[White "Righi, Ezio"]
[Black "Carpenter, Paul A"]
[Result "1-0"]
[ECO "B17"]
[WhiteElo "1915"]
[BlackElo "1982"]
[Annotator "RC"]
[PlyCount "119"]
[EventDate "2021.04.17"]
[EventType "tourn"]
[EventCountry "NET"]
[SourceTitle "playchess.com"]
[Source "ChessBase"]
[SourceQuality "1"]
[TimeControl "7200+30"]

1. e4 {[%emt 0:00:06]} c6 {[%emt 0:01:04]} 2. d4 {[%emt 0:00:14]} d5 {[%emt 0:01:10]} 3. Nc3 {[%emt 0:00:06]} dxe4 {[%emt 0:00:36]} 4. Nxe4 {[%emt 0:00:07]} Nd7 {[%emt 0:02:08]} 5. Nf3 {[%emt 0:01:38]} Ngf6 {[%emt 0:02:08]} 6. Nxf6+ {[%emt 0:03:25]} Nxf6 {[%emt 0:00:36]} 7. Bc4 {[%emt 0:01:14]} Bf5 {[%emt 0:04:57]} 8. c3 {[%emt 0:07:00]} e6 {[%emt 0:02:17]} 9. O-O {[%emt 0:03:07]} Bd6 {[%emt 0:01:49]} 10. a4 {[%emt 0:03:22]} Qc7 {[%emt 0:05:56]} 11. Re1 {[%emt 0:02:34]} Bg4 {[%emt 0:02:32]} 12. h3 {[%emt 0:00:17]} Bh5 {[%emt 0:05:19]} 13. Qd3 {[%emt 0:01:51]} O-O-O {[%emt 0:04:12]} 14. b4 {[%emt 0:03:11]} h6 {[%emt 0:01:31]} 15. Bd2 {[%emt 0:08:49]} g5 {[%emt 0:02:40]} 16. g4 {[%emt 0:07:49]} Nxg4 {[%emt 0:07:09]} 17. hxg4 {[%emt 0:00:13]} Bxg4 {[%emt 0:00:03]} 18. Kg2 {[%emt 0:02:40]} Rdg8 {[%emt 0:23:47]} 19. Ne5 {[%emt 0:02:26]} Bf5 {[%emt 0:01:37]} 20. Qe2 {[%emt 0:01:37]} h5 {[%emt 0:24:06]} 21. Bd3 {[%emt 0:02:49]} h4 {[%emt 0:14:22]} 22. Bxf5 {[%emt 0:02:59]} exf5 {[%emt 0:00:33]} 23. Qf3 {[%emt 0:02:26]} h3+ {[%emt 0:01:24]} 24. Kh1 {[%emt 0:00:37]} f4 {[%emt 0:06:06]} 25. Qg4+ {[%emt 0:04:22]} Kb8 {[%emt 0:00:12]} 26. Nd7+ {[%emt 0:02:06]} Ka8 {[%emt 0:00:06]} 27. Nf6 {[%emt 0:00:31]} Qc8 {[%emt 0:03:08]} 28. Qxc8+ {[%emt 0:01:34]} Rxc8 {[%emt 0:00:05]} 29. Rg1 {[%emt 0:02:05]} Be7 {[%emt 0:01:21]} 30. Nd7 {[%emt 0:02:15]} h2 {[%emt 0:02:29]} 31. Rge1 {[%emt 0:01:08]} Bd6 {[%emt 0:00:38]} 32. f3 {[%emt 0:01:52]} Rh3 {[%emt 0:00:34]} 33. Rf1 {[%emt 0:03:01]} b6 {[%emt 0:02:24]} 34. Rae1 {[%emt 0:05:11]} Kb7 {[%emt 0:00:37]} 35. Re2 {[%emt 0:01:10]} Rch8 {[%emt 0:01:28]} 36. Nf6 {[%emt 0:00:57]} Kc7 {[%emt 0:01:05]} 37. Rg2 {[%emt 0:03:55]} Rg3 {[%emt 0:01:35]} 38. Ne4 {[%emt 0:01:16]} Rxg2 {[%emt 0:00:25]} 39. Kxg2 {[%emt 0:00:04]} f5 {[%emt 0:00:08]} 40. Nxd6 {[%emt 0:00:49]} Kxd6 {[%emt 0:00:04]} 41. Rh1 {[%emt 0:00:15]} Kd5 {[%emt 0:02:22]} 42. Rxh2 {[%emt 0:00:24]} Rxh2+ {[%emt 0:00:17]} 43. Kxh2 {[%emt 0:00:02]} a6 {[%emt 0:00:30]} 44. Kg2 {[%emt 0:00:06]} c5 {[%emt 0:02:42]} 45. dxc5 {[%emt 0:00:55]} bxc5 {[%emt 0:00:04]} 46. Kf2 {[%emt 0:02:33]} c4 {[%emt 0:00:41]} 47. Kg2 {[%emt 0:01:00]} Ke5 {[%emt 0:00:21]} 48. Kh3 {[%emt 0:00:10]} Kd5 {[%emt 0:02:04]} 49. Bxf4 {[%emt 0:00:16]} gxf4 {[%emt 0:00:18]} 50. Kh4 {[%emt 0:00:03]} Kd6 {[%emt 0:00:07]} 51. Kg5 {[%emt 0:00:06]} Ke5 {[%emt 0:00:03]} 52. Kg6 {[%emt 0:00:04]} Ke6 {[%emt 0:00:10]} 53. b5 {[%emt 0:00:11]} axb5 {[%emt 0:00:04]} 54. axb5 {[%emt 0:00:02]} Kd5 {[%emt 0:00:27]} 55. Kxf5 {[%emt 0:00:03]} Kc5 {[%emt 0:00:02]} 56. Kxf4 {[%emt 0:00:01]} Kxb5 {[%emt 0:00:01]} 57. Ke4 {[%emt 0:00:02]} Ka4 {[%emt 0:00:28]} 58. f4 {[%emt 0:00:05]} Kb3 {[%emt 0:00:06]} 59. Kd4 {[%emt 0:00:04]} Kc2 {[%emt 0:00:04]} 60. f5 {[%emt 0:00:05]} 1-0

[Event "ESNH-ch 2021"]
[Site "Tornelo"]
[Date "2021.04.17"]
[Round "7.4"]
[White "Apol, Luitjen Akselsson"]
[Black "Efimov, Igor"]
[Result "1/2-1/2"]
[ECO "B30"]
[WhiteElo "2092"]
[BlackElo "2416"]
[Annotator "ChessBase"]
[PlyCount "57"]
[EventDate "2021.04.17"]
[EventType "tourn"]
[EventCountry "NET"]
[SourceTitle "playchess.com"]
[Source "ChessBase"]
[SourceQuality "1"]
[TimeControl "7200+30"]

1. e4 {[%emt 0:00:08]} c5 {[%emt 0:00:08]} 2. Nf3 {[%emt 0:00:12]} Nc6 {[%emt 0:00:12]} 3. Bb5 {[%emt 0:00:17]} e6 {[%emt 0:00:28]} 4. O-O {[%emt 0:00:12]} Nge7 {[%emt 0:00:05]} 5. Re1 {[%emt 0:00:33]} a6 {[%emt 0:00:26]} 6. Bxc6 {[%emt 0:02:06]} Nxc6 {[%emt 0:00:05]} 7. d4 {[%emt 0:00:08]} cxd4 {[%emt 0:00:06]} 8. Nxd4 {[%emt 0:00:04]} Qc7 {[%emt 0:07:01]} 9. Nxc6 {[%emt 0:00:38]} Qxc6 {[%emt 0:00:34]} 10. Nc3 {[%emt 0:00:58]} b5 {[%emt 0:17:53]} 11. a4 {[%emt 0:01:19]} Bb7 {[%emt 0:02:14]} 12. axb5 {[%emt 0:17:00]} axb5 {[%emt 0:00:06]} 13. Rxa8+ {[%emt 0:00:05]} Bxa8 {[%emt 0:00:02]} 14. Qd3 {[%emt 0:00:20]} b4 {[%emt 0:11:54]} 15. Nd5 {[%emt 0:00:20]} f5 {[%emt 0:00:09]} 16. Qg3 {[%emt 0:01:52]} Kf7 {[%emt 0:10:05]} 17. Nf4 {[%emt 0:22:22]} Qxc2 {[%emt 0:04:13]} 18. Nd3 {[%emt 0:05:58]} Bxe4 {[%emt 0:05:23]} 19. Ne5+ {[%emt 0:00:24]} Ke8 {[%emt 0:00:26]} 20. Bg5 {[%emt 0:07:46]} Bb7 {[%emt 0:14:19]} 21. Qh4 {[%emt 0:05:52]} Bc5 {[%emt 0:00:58]} 22. h3 {[%emt 0:12:00]} d6 {[%emt 0:10:01]} 23. Ng6 {[%emt 0:09:39]} hxg6 {[%emt 0:01:12]} 24. Qxh8+ {[%emt 0:01:47]} Kf7 {[%emt 0:00:05]} 25. Bh4 {[%emt 0:00:25]} Qxb2 {[%emt 0:02:45]} 26. Qb8 {[%emt 0:07:48]} Bd5 {[%emt 0:00:52]} 27. Bg3 {[%emt 0:01:05]} Qc3 {[%emt 0:02:23]} 28. Qc7+ {[%emt 0:00:32]} Kg8 {[%emt 0:00:09]} 29. Qd8+ {[%emt 0:00:05]} 1/2-1/2

[Event "ESNH-ch 2021"]
[Site "Tornelo"]
[Date "2021.04.17"]
[Round "8.1"]
[White "Constantinou, Pavlos"]
[Black "Darmanin, Jake"]
[Result "1/2-1/2"]
[ECO "C55"]
[WhiteElo "2120"]
[BlackElo "2106"]
[Annotator "NA"]
[PlyCount "160"]
[EventDate "2021.04.17"]
[EventType "tourn"]
[EventCountry "NET"]
[SourceTitle "playchess.com"]
[Source "ChessBase"]
[SourceQuality "1"]
[TimeControl "7200+30"]

1. e4 {[%emt 0:00:41]} e5 {[%emt 0:00:19]} 2. Nf3 {[%emt 0:00:29]} Nc6 {[%emt 0:00:05]} 3. Bc4 {[%emt 0:00:05]} Nf6 {[%emt 0:00:09]} 4. d3 {[%emt 0:00:07]} h6 {[%emt 0:00:10]} 5. c3 {[%emt 0:00:19]} d6 {[%emt 0:02:38]} 6. O-O {[%emt 0:00:12]} g5 {[%emt 0:00:37]} 7. Re1 {[%emt 0:01:33]} g4 {[%emt 0:03:06]} 8. Nh4 {[%emt 0:00:05]} Nxe4 {[%emt 0:07:48]} 9. Ng6 {[%emt 0:02:52]} fxg6 {[%emt 0:07:13]} 10. dxe4 {[%emt 0:00:21]} Qe7 {[%emt 0:05:01]} 11. Nd2 {[%emt 0:03:03]} Be6 {[%emt 0:12:28]} 12. Qb3 {[%emt 0:06:04]} Nd8 {[%emt 0:02:01]} 13. Qa4+ {[%emt 0:00:06]} c6 {[%emt 0:04:30]} 14. Bd3 {[%emt 0:01:24]} Bg7 {[%emt 0:02:11]} 15. b4 {[%emt 0:04:21]} O-O {[%emt 0:01:18]} 16. Nf1 {[%emt 0:00:07]} b5 {[%emt 0:07:20]} 17. Qc2 {[%emt 0:01:52]} a5 {[%emt 0:05:07]} 18. Be3 {[%emt 0:05:28]} Qf7 {[%emt 0:14:46]} 19. a3 {[%emt 0:09:31]} Bc4 {[%emt 0:08:48]} 20. Bxc4 {[%emt 0:15:38]} Qxc4 {[%emt 0:00:21]} 21. Nd2 {[%emt 0:08:20]} Qf7 {[%emt 0:05:56]} 22. c4 {[%emt 0:00:58]} Ne6 {[%emt 0:10:14]} 23. cxb5 {[%emt 0:03:46]} Nd4 {[%emt 0:01:04]} 24. Qd3 {[%emt 0:13:06]} cxb5 {[%emt 0:04:00]} 25. Rf1 {[%emt 0:08:12]} Rac8 {[%emt 0:08:46]} 26. bxa5 {[%emt 0:02:35]} Rc3 {[%emt 0:03:37]} 27. Qb1 {[%emt 0:01:53]} Ne2+ {[%emt 0:04:13]} 28. Kh1 {[%emt 0:00:04]} d5 {[%emt 0:01:55]} 29. Qxb5 {[%emt 0:01:05]} Nf4 {[%emt 0:01:37]} 30. Bxf4 {[%emt 0:02:43]} exf4 {[%emt 0:00:17]} 31. exd5 {[%emt 0:06:22]} Rc2 {[%emt 0:01:10]} 32. Rad1 {[%emt 0:00:11]} f3 {[%emt 0:02:22]} 33. g3 {[%emt 0:02:25]} Qf5 {[%emt 0:00:08]} 34. Nc4 {[%emt 0:02:11]} Qh5 {[%emt 0:02:34]} 35. Ne3 {[%emt 0:00:07]} Re2 {[%emt 0:00:16]} 36. Qc4 {[%emt 0:00:59]} Rd8 {[%emt 0:01:47]} 37. Qxg4 {[%emt 0:01:18]} Qxg4 {[%emt 0:00:11]} 38. Nxg4 {[%emt 0:00:02]} Re4 {[%emt 0:01:25]} 39. h3 {[%emt 0:00:52]} Ra4 {[%emt 0:00:13]} 40. Rd3 {[%emt 0:00:15]} Rxa5 {[%emt 0:00:02]} 41. Rfd1 {[%emt 0:00:10]} h5 {[%emt 0:00:18]} 42. Nh2 {[%emt 0:00:06]} Bf8 {[%emt 0:00:03]} 43. d6 {[%emt 0:01:10]} Ra6 {[%emt 0:00:11]} 44. Nxf3 {[%emt 0:01:18]} Rdxd6 {[%emt 0:00:10]} 45. Rxd6 {[%emt 0:01:03]} Bxd6 {[%emt 0:00:11]} 46. a4 {[%emt 0:00:18]} Bc5 {[%emt 0:00:14]} 47. Ra1 {[%emt 0:04:03]} Bxf2 {[%emt 0:00:14]} 48. Kg2 {[%emt 0:00:02]} Bb6 {[%emt 0:00:13]} 49. Ra2 {[%emt 0:01:16]} Bc7 {[%emt 0:00:45]} 50. Kf2 {[%emt 0:01:05]} Kf7 {[%emt 0:00:09]} 51. g4 {[%emt 0:00:12]} hxg4 {[%emt 0:00:05]} 52. hxg4 {[%emt 0:00:01]} Ke6 {[%emt 0:00:15]} 53. Ke3 {[%emt 0:00:17]} Bb6+ {[%emt 0:01:24]} 54. Ke4 {[%emt 0:00:10]} Ra5 {[%emt 0:00:29]} 55. Nd4+ {[%emt 0:00:57]} Kd6 {[%emt 0:00:40]} 56. Nb5+ {[%emt 0:02:14]} Ke6 {[%emt 0:01:09]} 57. Kf4 {[%emt 0:02:33]} Kf6 {[%emt 0:01:19]} 58. Ra1 {[%emt 0:01:32]} Bc5 {[%emt 0:00:35]} 59. Ra2 {[%emt 0:02:43]} Bb6 {[%emt 0:00:15]} 60. Nc3 {[%emt 0:06:20]} Bc7+ {[%emt 0:00:14]} 61. Kf3 {[%emt 0:00:11]} Be5 {[%emt 0:00:43]} 62. Ne4+ {[%emt 0:02:12]} Ke6 {[%emt 0:00:08]} 63. Nd2 {[%emt 0:00:02]} Kd5 {[%emt 0:01:00]} 64. Ke3 {[%emt 0:01:43]} Bd6 {[%emt 0:00:51]} 65. Kd3 {[%emt 0:00:11]} Bb4 {[%emt 0:00:40]} 66. Nc4 {[%emt 0:01:22]} Ra6 {[%emt 0:01:02]} 67. Re2 {[%emt 0:01:28]} Rf6 {[%emt 0:01:06]} 68. Re5+ {[%emt 0:00:41]} Kc6 {[%emt 0:00:04]} 69. a5 {[%emt 0:00:36]} Rf3+ {[%emt 0:00:44]} 70. Ne3 {[%emt 0:01:13]} Bc5 {[%emt 0:00:40]} 71. a6 {[%emt 0:01:03]} Kd6 {[%emt 0:00:47]} 72. Re8 {[%emt 0:00:23]} Kd7 {[%emt 0:00:10]} 73. Re4 {[%emt 0:00:07]} Kd6 {[%emt 0:00:41]} 74. Ke2 {[%emt 0:00:13]} Rf7 {[%emt 0:00:34]} 75. Ra4 {[%emt 0:00:41]} Re7 {[%emt 0:00:05]} 76. a7 {[%emt 0:00:45]} Bxa7 {[%emt 0:00:57]} 77. Ra6+ {[%emt 0:01:34]} Ke5 {[%emt 0:00:10]} 78. Rxg6 {[%emt 0:01:19]} Kf4 {[%emt 0:00:36]} 79. Rf6+ {[%emt 0:00:05]} Kg3 {[%emt 0:00:31]} 80. Rf3+ {[%emt 0:00:10]} Kh4 {[%emt 0:00:04]} 1/2-1/2

[Event "ESNH-ch 2021"]
[Site "Tornelo"]
[Date "2021.04.17"]
[Round "8.3"]
[White "Righi, Ezio"]
[Black "Apol, Luitjen Akselsson"]
[Result "0-1"]
[ECO "B92"]
[WhiteElo "1915"]
[BlackElo "2092"]
[Annotator "NA"]
[PlyCount "40"]
[EventDate "2021.04.17"]
[EventType "tourn"]
[EventCountry "NET"]
[SourceTitle "playchess.com"]
[Source "ChessBase"]
[SourceQuality "1"]
[TimeControl "7200+30"]

1. e4 {[%emt 0:00:23]} c5 {[%emt 0:00:11]} 2. Nf3 {[%emt 0:00:14]} d6 {[%emt 0:00:23]} 3. d4 {[%emt 0:00:10]} cxd4 {[%emt 0:00:13]} 4. Nxd4 {[%emt 0:00:04]} Nf6 {[%emt 0:00:16]} 5. Nc3 {[%emt 0:00:05]} a6 {[%emt 0:00:20]} 6. Be2 {[%emt 0:00:49]} e5 {[%emt 0:00:31]} 7. Nb3 {[%emt 0:00:07]} Be7 {[%emt 0:00:24]} 8. O-O {[%emt 0:00:08]} O-O {[%emt 0:00:13]} 9. Kh1 {[%emt 0:02:26]} b6 {[%emt 0:01:46]} 10. Be3 {[%emt 0:01:04]} Bb7 {[%emt 0:02:04]} 11. f3 {[%emt 0:00:23]} Nbd7 {[%emt 0:04:22]} 12. Rf2 {[%emt 0:02:08]} b5 {[%emt 0:04:58]} 13. a4 {[%emt 0:01:33]} b4 {[%emt 0:00:12]} 14. Nd5 {[%emt 0:00:06]} Nxd5 {[%emt 0:01:00]} 15. exd5 {[%emt 0:00:08]} Nf6 {[%emt 0:23:30]} 16. Bc4 {[%emt 0:02:19]} Rc8 {[%emt 0:00:09]} 17. Qd3 {[%emt 0:00:36]} e4 {[%emt 0:00:12]} 18. fxe4 {[%emt 0:00:26]} Ng4 {[%emt 0:00:13]} 19. Nd2 {[%emt 0:02:14]} Bg5 {[%emt 0:04:10]} 20. Re2 {[%emt 0:01:53]} Bxe3 {[%emt 0:00:21]} 0-1

[Event "ESNH-ch 2021"]
[Site "Tornelo"]
[Date "2021.04.17"]
[Round "8.4"]
[White "Carpenter, Paul A"]
[Black "Berend, Fred"]
[Result "0-1"]
[ECO "A22"]
[WhiteElo "1982"]
[BlackElo "2323"]
[Annotator "NA"]
[PlyCount "64"]
[EventDate "2021.04.17"]
[EventType "tourn"]
[EventCountry "NET"]
[SourceTitle "playchess.com"]
[Source "ChessBase"]
[SourceQuality "1"]
[TimeControl "7200+30"]

1. c4 {[%emt 0:01:25]} Nf6 {[%emt 0:00:18]} 2. Nc3 {[%emt 0:00:21]} e5 {[%emt 0:02:00]} 3. g3 {[%emt 0:01:35]} Bb4 {[%emt 0:00:11]} 4. Bg2 {[%emt 0:01:55]} O-O {[%emt 0:00:14]} 5. e3 {[%emt 0:02:04]} Re8 {[%emt 0:00:36]} 6. Nge2 {[%emt 0:02:14]} c6 {[%emt 0:00:47]} 7. O-O {[%emt 0:05:42]} Na6 {[%emt 0:06:34]} 8. a3 {[%emt 0:06:53]} Bf8 {[%emt 0:00:12]} 9. b4 {[%emt 0:00:56]} d5 {[%emt 0:01:46]} 10. cxd5 {[%emt 0:00:53]} cxd5 {[%emt 0:00:09]} 11. f4 {[%emt 0:18:25]} Nc7 {[%emt 0:05:40]} 12. Bb2 {[%emt 0:01:18]} d4 {[%emt 0:04:58]} 13. Ne4 {[%emt 0:20:52]} Nxe4 {[%emt 0:02:28]} 14. Bxe4 {[%emt 0:00:08]} exf4 {[%emt 0:03:48]} 15. Rxf4 {[%emt 0:01:13]} Ne6 {[%emt 0:10:46]} 16. Bxh7+ {[%emt 0:03:28]} Kxh7 {[%emt 0:03:12]} 17. Rh4+ {[%emt 0:01:35]} Kg8 {[%emt 0:00:17]} 18. Nxd4 {[%emt 0:03:33]} Be7 {[%emt 0:08:01]} 19. Rh7 {[%emt 0:03:49]} Kxh7 {[%emt 0:03:53]} 20. Qh5+ {[%emt 0:00:50]} Kg8 {[%emt 0:00:04]} 21. Rf1 {[%emt 0:13:17]} Bf6 {[%emt 0:01:13]} 22. Nf5 {[%emt 0:02:36]} Nf4 {[%emt 0:07:36]} 23. Nh6+ {[%emt 0:01:02]} gxh6 {[%emt 0:06:25]} 24. Rxf4 {[%emt 0:00:18]} Bf5 {[%emt 0:04:19]} 25. Qxf5 {[%emt 0:01:20]} Bxb2 {[%emt 0:00:47]} 26. d4 {[%emt 0:01:02]} Qe7 {[%emt 0:03:01]} 27. Rg4+ {[%emt 0:01:39]} Kh8 {[%emt 0:01:14]} 28. Qh5 {[%emt 0:00:20]} Qxe3+ {[%emt 0:00:19]} 29. Kg2 {[%emt 0:00:04]} Qe2+ {[%emt 0:01:24]} 30. Kh3 {[%emt 0:00:03]} Qf1+ {[%emt 0:00:13]} 31. Kh4 {[%emt 0:00:04]} Qf6+ {[%emt 0:00:22]} 32. Kh3 {[%emt 0:00:04]} Re3 {[%emt 0:00:29]} 0-1

[Event "ESNH-ch 2021"]
[Site "Tornelo"]
[Date "2021.04.17"]
[Round "8.5"]
[White "Ziska, Helgi Dam"]
[Black "Wiedenkeller, Michael"]
[Result "1/2-1/2"]
[ECO "C09"]
[WhiteElo "2539"]
[BlackElo "2445"]
[Annotator "ChessBase"]
[PlyCount "91"]
[EventDate "2021.04.17"]
[EventType "tourn"]
[EventCountry "NET"]
[SourceTitle "playchess.com"]
[Source "ChessBase"]
[SourceQuality "1"]
[TimeControl "7200+30"]

1. e4 {[%emt 0:00:11]} e6 {[%emt 0:00:26]} 2. d4 {[%emt 0:00:26]} d5 {[%emt 0:00:11]} 3. Nd2 {[%emt 0:00:02]} c5 {[%emt 0:00:17]} 4. Ngf3 {[%emt 0:00:05]} Nc6 {[%emt 0:00:28]} 5. exd5 {[%emt 0:00:28]} exd5 {[%emt 0:00:08]} 6. Bb5 {[%emt 0:00:04]} Qe7+ {[%emt 0:00:16]} 7. Be2 {[%emt 0:00:04]} Qc7 {[%emt 0:04:23]} 8. dxc5 {[%emt 0:01:15]} Bxc5 {[%emt 0:00:47]} 9. Nb3 {[%emt 0:00:22]} Be7 {[%emt 0:00:26]} 10. O-O {[%emt 0:00:05]} Nf6 {[%emt 0:00:09]} 11. c3 {[%emt 0:00:13]} O-O {[%emt 0:01:15]} 12. Bg5 {[%emt 0:00:14]} Be6 {[%emt 0:02:01]} 13. Re1 {[%emt 0:01:17]} Rae8 {[%emt 0:06:59]} 14. Nfd4 {[%emt 0:08:00]} h6 {[%emt 0:06:18]} 15. Bh4 {[%emt 0:02:56]} Ne4 {[%emt 0:02:44]} 16. Bxe7 {[%emt 0:00:06]} Rxe7 {[%emt 0:00:23]} 17. Bd3 {[%emt 0:19:41]} Qb6 {[%emt 0:18:25]} 18. Bc2 {[%emt 0:07:54]} Nf6 {[%emt 0:13:39]} 19. Qd2 {[%emt 0:08:26]} Rfe8 {[%emt 0:02:01]} 20. f3 {[%emt 0:04:38]} Bd7 {[%emt 0:02:08]} 21. Rxe7 {[%emt 0:00:19]} Rxe7 {[%emt 0:00:12]} 22. Qf2 {[%emt 0:02:11]} Ne5 {[%emt 0:05:14]} 23. Rd1 {[%emt 0:03:34]} Nc4 {[%emt 0:03:34]} 24. Bd3 {[%emt 0:00:51]} Re8 {[%emt 0:05:21]} 25. Bf1 {[%emt 0:00:38]} Re7 {[%emt 0:06:42]} 26. Rb1 {[%emt 0:01:00]} Re8 {[%emt 0:00:37]} 27. Nd2 {[%emt 0:08:44]} Nd6 {[%emt 0:00:57]} 28. N4b3 {[%emt 0:07:01]} Qxf2+ {[%emt 0:01:40]} 29. Kxf2 {[%emt 0:00:04]} Bb5 {[%emt 0:00:51]} 30. Nd4 {[%emt 0:01:39]} Bxf1 {[%emt 0:00:20]} 31. Nxf1 {[%emt 0:00:03]} Nc4 {[%emt 0:02:44]} 32. b3 {[%emt 0:02:36]} Ne5 {[%emt 0:01:09]} 33. Rd1 {[%emt 0:00:15]} Nc6 {[%emt 0:03:36]} 34. Ne2 {[%emt 0:00:49]} Ne7 {[%emt 0:02:36]} 35. Ne3 {[%emt 0:00:35]} Rc8 {[%emt 0:00:24]} 36. g4 {[%emt 0:00:47]} g5 {[%emt 0:01:44]} 37. c4 {[%emt 0:04:29]} dxc4 {[%emt 0:00:42]} 38. bxc4 {[%emt 0:00:03]} Ng6 {[%emt 0:04:24]} 39. Rd6 {[%emt 0:01:05]} Rc6 {[%emt 0:00:24]} 40. Rd8+ {[%emt 0:02:45]} Kh7 {[%emt 0:00:24]} 41. Rb8 {[%emt 0:01:03]} Rc7 {[%emt 0:01:17]} 42. Nc3 {[%emt 0:01:38]} Nf4 {[%emt 0:01:51]} 43. Ke1 {[%emt 0:14:11]} Rd7 {[%emt 0:04:02]} 44. Nf5 {[%emt 0:02:41]} h5 {[%emt 0:01:33]} 45. gxh5 {[%emt 0:04:57]} N4xh5 {[%emt 0:09:40]} 46. Ne4 {[%emt 0:07:42]} 1/2-1/2

[Event "ESNH-ch 2021"]
[Site "Tornelo"]
[Date "2021.04.17"]
[Round "9.1"]
[White "Wiedenkeller, Michael"]
[Black "Constantinou, Pavlos"]
[Result "1-0"]
[ECO "E46"]
[WhiteElo "2445"]
[BlackElo "2120"]
[Annotator "ChessBase"]
[PlyCount "123"]
[EventDate "2021.04.17"]
[EventType "tourn"]
[EventCountry "NET"]
[SourceTitle "playchess.com"]
[Source "ChessBase"]
[SourceQuality "1"]
[TimeControl "7200+30"]

1. d4 {[%emt 0:01:02]} Nf6 {[%emt 0:00:07]} 2. c4 {[%emt 0:00:22]} e6 {[%emt 0:00:05]} 3. Nc3 {[%emt 0:00:36]} Bb4 {[%emt 0:00:14]} 4. e3 {[%emt 0:00:46]} O-O {[%emt 0:01:18]} 5. Nge2 {[%emt 0:00:41]} Re8 {[%emt 0:03:46]} 6. a3 {[%emt 0:00:33]} Bf8 {[%emt 0:00:08]} 7. Ng3 {[%emt 0:04:31]} d6 {[%emt 0:00:49]} 8. Bd3 {[%emt 0:04:47]} e5 {[%emt 0:01:40]} 9. O-O {[%emt 0:01:05]} c6 {[%emt 0:05:33]} 10. h3 {[%emt 0:10:04]} g6 {[%emt 0:04:49]} 11. b4 {[%emt 0:04:07]} a5 {[%emt 0:04:27]} 12. Bb2 {[%emt 0:02:37]} Bg7 {[%emt 0:12:02]} 13. b5 {[%emt 0:06:53]} d5 {[%emt 0:07:15]} 14. dxe5 {[%emt 0:14:18]} Rxe5 {[%emt 0:03:14]} 15. Nxd5 {[%emt 0:04:51]} Nxd5 {[%emt 0:01:54]} 16. Bxe5 {[%emt 0:00:20]} Bxe5 {[%emt 0:00:04]} 17. cxd5 {[%emt 0:00:19]} Bxa1 {[%emt 0:00:59]} 18. Qxa1 {[%emt 0:00:26]} cxd5 {[%emt 0:01:47]} 19. Qd4 {[%emt 0:06:38]} Qe7 {[%emt 0:11:54]} 20. Qxd5 {[%emt 0:08:29]} Be6 {[%emt 0:00:11]} 21. Qe4 {[%emt 0:02:28]} Nd7 {[%emt 0:00:12]} 22. Qxb7 {[%emt 0:03:23]} Rb8 {[%emt 0:01:06]} 23. Qa7 {[%emt 0:05:46]} Qxa3 {[%emt 0:01:02]} 24. Be4 {[%emt 0:00:35]} Rxb5 {[%emt 0:04:53]} 25. Qd4 {[%emt 0:08:04]} Qb4 {[%emt 0:02:18]} 26. Qa1 {[%emt 0:04:17]} Qb2 {[%emt 0:08:06]} 27. Bc6 {[%emt 0:02:02]} Qxa1 {[%emt 0:03:21]} 28. Rxa1 {[%emt 0:00:06]} Re5 {[%emt 0:00:36]} 29. Ne2 {[%emt 0:04:58]} Rc5 {[%emt 0:03:50]} 30. Nd4 {[%emt 0:00:26]} Ne5 {[%emt 0:03:05]} 31. Bb5 {[%emt 0:04:40]} Bd7 {[%emt 0:33:08]} 32. Bxd7 {[%emt 0:04:16]} Nxd7 {[%emt 0:00:05]} 33. Nb3 {[%emt 0:00:04]} Rc7 {[%emt 0:00:23]} 34. Rxa5 {[%emt 0:01:30]} h5 {[%emt 0:00:11]} 35. g3 {[%emt 0:02:04]} Kg7 {[%emt 0:00:21]} 36. Kg2 {[%emt 0:00:24]} Nf6 {[%emt 0:00:07]} 37. Nd4 {[%emt 0:01:07]} Rb7 {[%emt 0:00:17]} 38. Re5 {[%emt 0:01:10]} Rd7 {[%emt 0:00:55]} 39. Kf3 {[%emt 0:01:59]} Nd5 {[%emt 0:04:02]} 40. Re8 {[%emt 0:00:59]} Nf6 {[%emt 0:00:16]} 41. Ra8 {[%emt 0:00:31]} Re7 {[%emt 0:00:22]} 42. Rd8 {[%emt 0:01:29]} Re8 {[%emt 0:02:27]} 43. Rd6 {[%emt 0:01:27]} Re7 {[%emt 0:00:18]} 44. Nc6 {[%emt 0:02:36]} Rc7 {[%emt 0:02:30]} 45. Ne5 {[%emt 0:01:22]} Ra7 {[%emt 0:01:07]} 46. Kf4 {[%emt 0:01:28]} Ra4+ {[%emt 0:00:41]} 47. Rd4 {[%emt 0:00:34]} Ra5 {[%emt 0:01:50]} 48. e4 {[%emt 0:04:21]} Ra3 {[%emt 0:01:12]} 49. Rb4 {[%emt 0:01:29]} Ra7 {[%emt 0:00:16]} 50. Rd4 {[%emt 0:01:21]} Re7 {[%emt 0:00:10]} 51. f3 {[%emt 0:00:36]} Re6 {[%emt 0:01:16]} 52. Nc4 {[%emt 0:00:25]} Re7 {[%emt 0:00:34]} 53. Ne3 {[%emt 0:00:32]} Nh7 {[%emt 0:01:48]} 54. Nd5 {[%emt 0:01:33]} Rd7 {[%emt 0:00:19]} 55. Rc4 {[%emt 0:00:19]} Nf8 {[%emt 0:00:08]} 56. Ke3 {[%emt 0:01:20]} Ne6 {[%emt 0:00:12]} 57. f4 {[%emt 0:00:26]} f5 {[%emt 0:01:10]} 58. Rc6 {[%emt 0:02:00]} fxe4 {[%emt 0:00:25]} 59. Kxe4 {[%emt 0:00:19]} Nd8 {[%emt 0:00:21]} 60. Ra6 {[%emt 0:00:36]} Nf7 {[%emt 0:00:12]} 61. Nf6 {[%emt 0:01:16]} Nd6+ {[%emt 0:00:40]} 62. Rxd6 {[%emt 0:00:10]} 1-0